[Event "-chT Youth Countries 2019"]
[Site "Wuerzburg"]
[Date "2019.10.06"]
[Round "7.5"]
[White "Stockmann, Till"]
[Black "Zhou, Lepu Coco"]
[Result "0-1"]
[ECO "C77"]
[WhiteElo "1884"]
[BlackElo "1739"]
[Annotator "NA"]
[PlyCount "76"]
[EventDate "2019.10.02"]
[EventType "team-tourn"]
[EventRounds "7"]
[EventCountry "GER"]
[SourceTitle "playchess.com"]
[Source "ChessBase"]
[SourceQuality "1"]
[WhiteTeam "Sachsen-Anhalt"]
[BlackTeam "Berlin"]
[TimeControl "40/5400+30:1800+30"]

1. e4 {[%emt 0:00:00]} e5 {[%emt 0:00:00]} 2. Nf3 {[%emt 0:00:00]} Nc6 {[%emt 0:00:00]} 3. Bb5 {[%emt 0:00:02]} a6 {[%emt 0:00:00]} 4. Ba4 {[%emt 0:00:12]} Nf6 {[%emt 0:00:00]} 5. d4 {[%emt 0:00:44]} exd4 {[%emt 0:02:18]} 6. O-O {[%emt 0:01:03]} Be7 {[%emt 0:00:54]} 7. Re1 {[%emt 0:00:33]} O-O {[%emt 0:01:03] unterminated} 8. e5 {[%emt 0:02:01] unterminated} Nd5 {[%emt 0:01:32]} 9. Nxd4 {[%emt 0:03:06] unterminated} b5 {[%emt 0:01:16] C84: Closed Ruy Lopez: Unusual White 6th moves} (9... Nb6 10. Bb3 d5 11. c3 f6 12. Nxc6 bxc6 13. Bf4 fxe5 14. Bxe5 Bc5 15. Bd4 Bd6 16. Nd2 Qh4 17. g3 {½-½ (40) Mamedov,R (2652)-Matlakov,M (2685) Khanty-Mansiysk 2014}) 10. Bb3 {[%emt 0:02:33]} Nb6 {[%emt 0:01:10] unterminated} 11. Nf5 {[%emt 0:03:33]} d5 {[%emt 0:02:07]} 12. exd6 {[%emt 0:01:05]} Bxf5 $146 {[%emt 0:02:25]} ({Predecessor:} 12... Bxd6 13. Nxd6 Qxd6 14. Qxd6 cxd6 15. Bf4 Bf5 16. Bxd6 Rfe8 17. Nd2 {½-½ (72) Skok,J (2079)-Miletic,D Nova Gorica 2001}) 13. dxe7 {[%emt 0:00:41] unterminated} Nxe7 {[%emt 0:00:36] unterminated} 14. Qf3 {[%emt 0:01:04]} c5 {[%emt 0:01:26]} 15. Bg5 {[%emt 0:03:36]} Re8 {[%emt 0:02:04]} 16. Bxf7+ {[%emt 0:09:29]} Kxf7 {[%emt 0:00:23]} 17. Rxe7+ {[%emt 0:00:16]} Rxe7 {[%emt 0:00:55]} 18. Qxf5+ {[%emt 0:00:06]} Kg8 {[%emt 0:00:16] unterminated} 19. Nc3 {[%emt 0:00:25] unterminated} Qd7 {[%emt 0:01:52]} 20. Qxc5 {[%emt 0:05:25]} Re6 {[%emt 0:00:17]} 21. f3 {[%emt 0:00:46]} Nc4 {[%emt 0:00:53] unterminated} 22. b3 $17 {[%emt 0:03:49]} (22. Rd1 $15 Rc8 23. Rxd7 Rxc5 24. Rd8+ Kf7 25. Bf4) 22... Re5 {[%emt 0:00:32] unterminated} 23. Qf2 {[%emt 0:01:37]} Rxg5 {[%emt 0:00:10]} 24. bxc4 {[%emt 0:00:12]} bxc4 {[%emt 0:00:09]} 25. Ne4 {[%emt 0:02:17]} Rb5 {[%emt 0:00:58]} 26. c3 {[%emt 0:06:10]} Qa7 {[%emt 0:00:33]} 27. Qxa7 {[%emt 0:01:56]} Rxa7 {[%emt 0:00:06]} 28. Nd6 {[%emt 0:01:12]} Rb2 {[%emt 0:00:25]} 29. Nxc4 {[%emt 0:02:42]} Rc2 {[%emt 0:00:11]} 30. Nd6 {[%emt 0:00:36]} Rxc3 {[%emt 0:01:06]} 31. Rb1 {[%emt 0:01:01]} h6 {[%emt 0:01:11]} 32. h3 {[%emt 0:19:03]} Rc2 {[%emt 0:00:26]} 33. a3 {[%emt 0:00:30]} Rac7 {[%emt 0:00:09]} 34. Rb8+ {[%emt 0:02:17]} Kh7 {[%emt 0:00:27]} 35. Ra8 {[%emt 0:00:40]} Ra2 {[%emt 0:01:00]} 36. Rxa6 {[%emt 0:01:30]} Rcc2 {[%emt 0:00:12]} 37. Rb6 {[%emt 0:01:13]} Rxg2+ {[%emt 0:00:09]} 38. Kh1 {[%emt 0:00:50]} Rgd2 {[%emt 0:00:10] normal} 0-1

[Event "-chT Youth Countries 2019"]
[Site "Wuerzburg"]
[Date "2019.10.06"]
[Round "7.5"]
[White "Amato, Cristiano"]
[Black "Khamenya, Vitalia"]
[Result "0-1"]
[ECO "C71"]
[WhiteElo "1746"]
[BlackElo "1908"]
[Annotator "NA"]
[PlyCount "80"]
[EventDate "2019.10.02"]
[EventType "team-tourn"]
[EventRounds "7"]
[EventCountry "GER"]
[SourceTitle "playchess.com"]
[Source "ChessBase"]
[SourceQuality "1"]
[WhiteTeam "Baden 2"]
[BlackTeam "Bayern 2"]
[TimeControl "40/5400+30:1800+30"]

1. e4 {[%emt 0:00:00]} e5 {[%emt 0:00:00]} 2. Nf3 {[%emt 0:00:00]} Nc6 {[%emt 0:00:00]} 3. Bb5 {[%emt 0:00:00]} a6 {[%emt 0:00:00]} 4. Ba4 {[%emt 0:00:00]} d6 {[%emt 0:00:11]} 5. d4 {[%emt 0:00:35]} b5 {[%emt 0:00:21]} 6. Bb3 {[%emt 0:00:19]} Nxd4 {[%emt 0:00:12]} 7. Nxd4 {[%emt 0:00:24]} exd4 {[%emt 0:00:06]} 8. Qxd4 {[%emt 0:00:10]} c5 {[%emt 0:00:12] C71: Ruy Lopez: Deferred Steinitz Variation, sidelines} 9. Qd5 {[%emt 0:00:49]} (9. Qd3 c4 10. Bxc4 bxc4 11. Qxc4 Be6 12. Qe2 Nf6 13. O-O Be7 14. c4 Qb6 15. Nc3 Qd4 16. Nd5 Bxd5 17. exd5 {0-1 (27) Ruiz Castillo,J (2501)-Arizmendi Martinez,J (2512) Escaldes 2019}) 9... Be6 {[%emt 0:00:04]} 10. Qc6+ {[%emt 0:00:28]} Bd7 {[%emt 0:00:06]} 11. Qd5 {[%emt 0:00:57]} c4 {[%emt 0:00:15]} 12. Bxc4 {[%emt 0:00:13]} bxc4 {[%emt 0:00:01]} 13. Qxc4 {[%emt 0:00:15]} Nf6 {[%emt 0:00:43]} 14. Nc3 {[%emt 0:00:23]} Be7 {[%emt 0:00:39]} 15. Bf4 {[%emt 0:01:44]} O-O {[%emt 0:02:38]} 16. Rd1 {[%emt 0:01:07]} Be6 $146 {[%emt 0:01:28]} 17. Qd3 {[%emt 0:00:23]} Qb6 {[%emt 0:01:09]} 18. b3 {[%emt 0:01:06] unterminated} Rfd8 {[%emt 0:01:35]} 19. Bg5 {[%emt 0:01:55] [#] unterminated} Ng4 $1 {[%emt 0:05:30]} 20. Be3 $19 {[%emt 0:00:43]} Nxe3 {[%emt 0:00:47]} 21. Qxe3 {[%emt 0:00:37]} Qxe3+ {[%emt 0:01:23]} 22. fxe3 {[%emt 0:00:15]} Rac8 {[%emt 0:03:02]} 23. Kd2 {[%emt 0:01:25]} d5 {[%emt 0:02:53]} 24. exd5 {[%emt 0:00:29]} Bb4 {[%emt 0:00:20]} 25. Kc1 {[%emt 0:00:54]} Bg4 {[%emt 0:00:13]} 26. Rd4 {[%emt 0:00:21]} Bxc3 {[%emt 0:02:03]} 27. Rxg4 {[%emt 0:00:06]} Rxd5 {[%emt 0:00:08]} 28. Rd1 {[%emt 0:01:04]} Bb2+ {[%emt 0:01:17]} 29. Kxb2 {[%emt 0:01:19]} Rxd1 {[%emt 0:00:02]} 30. Rd4 {[%emt 0:00:34]} Rxd4 {[%emt 0:00:29]} 31. exd4 {[%emt 0:00:08]} Kf8 {[%emt 0:00:05]} 32. c4 {[%emt 0:00:10]} f5 {[%emt 0:04:42]} 33. Kc3 {[%emt 0:00:40]} g5 {[%emt 0:00:14]} 34. Kd3 {[%emt 0:00:05]} Re8 {[%emt 0:06:32]} 35. d5 {[%emt 0:00:53]} f4 {[%emt 0:07:49]} 36. d6 {[%emt 0:00:28]} g4 {[%emt 0:08:06]} 37. c5 {[%emt 0:02:42]} f3 {[%emt 0:02:57]} 38. gxf3 {[%emt 0:00:15]} gxf3 {[%emt 0:01:12]} 39. d7 {[%emt 0:00:46]} Rd8 {[%emt 0:00:15]} 40. Ke3 {[%emt 0:00:49]} Rxd7 {[%emt 0:00:30] normal} 0-1

[Event "-chT Youth Countries 2019"]
[Site "Wuerzburg"]
[Date "2019.10.06"]
[Round "7.5"]
[White "Unbehend, Marius"]
[Black "Kobald, Jacqueline"]
[Result "0-1"]
[ECO "B21"]
[WhiteElo "1461"]
[BlackElo "1884"]
[Annotator "NA"]
[PlyCount "120"]
[EventDate "2019.10.02"]
[EventType "team-tourn"]
[EventRounds "7"]
[EventCountry "GER"]
[SourceTitle "playchess.com"]
[Source "ChessBase"]
[SourceQuality "1"]
[WhiteTeam "Saarland"]
[BlackTeam "Württemberg"]
[TimeControl "40/5400+30:1800+30"]

1. e4 {[%emt 0:00:00]} c5 {[%emt 0:00:00]} 2. d4 {[%emt 0:00:00]} cxd4 {[%emt 0:00:00]} 3. c3 {[%emt 0:00:00]} Nf6 {[%emt 0:00:00]} 4. e5 {[%emt 0:00:00]} Nd5 {[%emt 0:00:07]} 5. Nf3 {[%emt 0:00:04]} e6 {[%emt 0:00:46]} 6. Bc4 {[%emt 0:01:23]} Nb6 {[%emt 0:01:08]} 7. Bb3 {[%emt 0:00:22]} Be7 {[%emt 0:02:55]} 8. O-O {[%emt 0:02:20]} O-O {[%emt 0:03:11]} 9. cxd4 {[%emt 0:00:49]} d6 {[%emt 0:00:36]} 10. Qe2 {[%emt 0:00:48]} Nc6 {[%emt 0:01:15]} 11. Nc3 {[%emt 0:01:47]} a6 {[%emt 0:09:26]} 12. Bf4 {[%emt 0:03:02]} Qc7 {[%emt 0:04:47]} 13. Rfd1 {[%emt 0:01:45]} Nd7 {[%emt 0:05:04]} 14. Bg3 {[%emt 0:02:15]} dxe5 {[%emt 0:11:28]} 15. dxe5 {[%emt 0:00:33]} Nc5 {[%emt 0:00:36]} 16. Bc2 {[%emt 0:02:45]} b5 {[%emt 0:02:53]} 17. Rac1 {[%emt 0:07:05]} Bb7 {[%emt 0:01:51]} 18. h4 {[%emt 0:05:19]} Rad8 {[%emt 0:08:13]} 19. Bb1 {[%emt 0:01:39]} Qb6 {[%emt 0:06:13]} 20. h5 {[%emt 0:02:01]} Rxd1+ {[%emt 0:03:51]} 21. Rxd1 {[%emt 0:00:24]} Rd8 {[%emt 0:01:21]} 22. Rxd8+ {[%emt 0:00:59]} Qxd8 {[%emt 0:00:15]} 23. Qc2 {[%emt 0:01:25]} g6 {[%emt 0:00:31]} 24. hxg6 {[%emt 0:00:18]} hxg6 {[%emt 0:00:15]} 25. Qe2 {[%emt 0:04:51]} Nd4 {[%emt 0:01:43]} 26. Nxd4 {[%emt 0:02:07]} Qxd4 {[%emt 0:00:08]} 27. a3 {[%emt 0:01:51]} Kg7 {[%emt 0:01:50]} 28. Kh2 {[%emt 0:02:19]} Bh4 {[%emt 0:08:46]} 29. Bxh4 {[%emt 0:02:18]} Qxh4+ {[%emt 0:00:09]} 30. Kg1 {[%emt 0:00:04]} Qg5 {[%emt 0:04:02]} 31. f3 {[%emt 0:01:56]} Nd7 {[%emt 0:02:29]} 32. Be4 {[%emt 0:01:37]} Bxe4 {[%emt 0:00:41]} 33. Qxe4 {[%emt 0:00:25]} Qxe5 {[%emt 0:01:06]} 34. Qc2 {[%emt 0:04:05]} Qd4+ {[%emt 0:01:52]} 35. Kh1 {[%emt 0:00:46]} Ne5 {[%emt 0:02:05]} 36. Ne4 {[%emt 0:02:14]} Nc4 {[%emt 0:02:45]} 37. Nc3 {[%emt 0:01:34]} Qd2 {[%emt 0:00:30]} 38. Qxd2 Nxd2 {[%emt 0:00:12]} 39. b4 {[%emt 0:03:49]} Kf6 {[%emt 0:00:54]} 40. a4 {[%emt 0:00:57]} bxa4 {[%emt 0:01:26]} 41. Nxa4 {[%emt 0:30:07]} Nb3 {[%emt 0:30:36]} 42. Nc3 {[%emt 0:00:44]} Ke5 {[%emt 0:10:17]} 43. b5 {[%emt 0:06:09]} a5 {[%emt 0:02:31]} 44. Na4 {[%emt 0:00:40]} Kd6 {[%emt 0:00:00]} 45. Kg1 {[%emt 0:00:00]} Nc5 {[%emt 0:00:00]} 46. Nc3 {[%emt 0:00:00]} a4 {[%emt 0:00:00]} 47. Kf2 {[%emt 0:00:00]} a3 {[%emt 0:00:00]} 48. Ke2 {[%emt 0:00:00]} Na4 {[%emt 0:00:00]} 49. Na2 {[%emt 0:00:00]} Kc5 {[%emt 0:00:00]} 50. b6 {[%emt 0:00:00]} Nxb6 {[%emt 0:00:00]} 51. Kd3 {[%emt 0:00:00]} Nd5 {[%emt 0:00:00]} 52. g3 {[%emt 0:00:00]} Nb4+ {[%emt 0:00:00]} 53. Nxb4 {[%emt 0:00:00]} Kxb4 {[%emt 0:00:00]} 54. Kc2 {[%emt 0:00:00]} Kc4 {[%emt 0:00:00]} 55. f4 {[%emt 0:00:00]} f6 {[%emt 0:00:00]} 56. Kb1 {[%emt 0:00:00]} Kb3 {[%emt 0:00:00]} 57. Ka1 {[%emt 0:00:00]} e5 {[%emt 0:00:00]} 58. fxe5 {[%emt 0:00:00]} fxe5 {[%emt 0:00:00]} 59. g4 {[%emt 0:00:00]} e4 {[%emt 0:00:00]} 60. g5 {[%emt 0:00:00]} e3 {[%emt 0:00:00] normal} 0-1

[Event "-chT Youth Countries 2019"]
[Site "Wuerzburg"]
[Date "2019.10.06"]
[Round "7.6"]
[White "Muedder, Melanie"]
[Black "Costa, Leonardo"]
[Result "1/2-1/2"]
[ECO "B06"]
[WhiteElo "1964"]
[BlackElo "1959"]
[Annotator "NA"]
[PlyCount "109"]
[EventDate "2019.10.02"]
[EventType "team-tourn"]
[EventRounds "7"]
[EventCountry "GER"]
[SourceTitle "playchess.com"]
[Source "ChessBase"]
[SourceQuality "1"]
[WhiteTeam "Nordrhein-Westfalen"]
[BlackTeam "Bayern 1"]
[TimeControl "40/5400+30:1800+30"]

1. e4 {[%emt 0:00:00]} g6 {[%emt 0:00:00]} 2. d4 {[%emt 0:00:07]} Bg7 {[%emt 0:00:00]} 3. Be3 {[%emt 0:00:45]} d6 {[%emt 0:00:00]} 4. Nc3 {[%emt 0:00:31]} a6 {[%emt 0:01:38]} 5. a4 {[%emt 0:00:44] unterminated} b6 {[%emt 0:01:07] unterminated} 6. Bc4 {[%emt 0:07:39] unterminated} e6 {[%emt 0:03:17] B06: Modern Defence} 7. f4 {[%emt 0:02:35] unterminated} Bb7 {[%emt 0:04:05] unterminated} 8. Qf3 $146 {[%emt 0:06:49]} ({Predecessor:} 8. Be2 Nd7 9. Bf3 Ne7 10. e5 Qc8 11. Bxb7 Qxb7 12. Qf3 O-O-O {0-1 (70) Cherniaev,A (2417)-Kokarev,D (2603) Voronezh 2018}) 8... Nf6 {[%emt 0:04:15] unterminated} 9. Nh3 {[%emt 0:09:32] unterminated} Nbd7 {[%emt 0:09:59] unterminated} 10. Nf2 {[%emt 0:09:34] unterminated} c5 {[%emt 0:11:44] unterminated} 11. Rd1 {[%emt 0:09:03] unterminated} Qc7 {[%emt 0:07:07] unterminated} 12. Qe2 {[%emt 0:03:41] unterminated} O-O {[%emt 0:09:26] unterminated} 13. O-O {[%emt 0:04:13]} (13. Bb3 $11) 13... cxd4 {[%emt 0:06:04]} 14. Bxd4 {[%emt 0:02:49]} e5 {[%emt 0:01:11]} 15. fxe5 {[%emt 0:08:40]} dxe5 {[%emt 0:03:49]} 16. Be3 {[%emt 0:01:46]} Nc5 {[%emt 0:01:48]} 17. Bg5 {[%emt 0:08:59]} Rac8 {[%emt 0:05:09]} 18. Ba2 {[%emt 0:04:20]} Bc6 {[%emt 0:01:41]} 19. a5 {[%emt 0:05:13]} bxa5 {[%emt 0:01:18]} 20. Bxf6 {[%emt 0:03:45]} Bxf6 {[%emt 0:00:05]} 21. Bd5 {[%emt 0:00:28]} Bb5 {[%emt 0:04:14]} 22. Nxb5 {[%emt 0:00:22]} axb5 {[%emt 0:00:04]} 23. Ng4 {[%emt 0:02:14]} Bg7 {[%emt 0:01:25]} 24. Qxb5 {[%emt 0:01:37]} Rb8 {[%emt 0:00:20]} 25. Qc4 {[%emt 0:00:16]} Rb4 {[%emt 0:01:50]} 26. Qe2 {[%emt 0:03:19]} Rxb2 {[%emt 0:02:12]} 27. Rf2 {[%emt 0:01:53]} Nb7 {[%emt 0:02:01]} 28. Rdf1 {[%emt 0:01:02]} Nd6 {[%emt 0:00:50]} 29. Qd3 {[%emt 0:00:32]} Rbb8 {[%emt 0:02:23]} 30. Qg3 {[%emt 0:00:50]} Qa7 {[%emt 0:03:17]} 31. Kh1 {[%emt 0:00:21]} Qd4 {[%emt 0:01:15]} 32. c3 {[%emt 0:01:08]} Qc5 {[%emt 0:00:39]} 33. h3 {[%emt 0:00:52]} Qc7 {[%emt 0:02:10]} 34. Nf6+ {[%emt 0:00:20]} Bxf6 {[%emt 0:00:25]} 35. Rxf6 {[%emt 0:00:03]} Qe7 {[%emt 0:07:54]} 36. Rxg6+ {[%emt 0:00:59]} Kh8 {[%emt 0:01:20]} 37. Rgf6 {[%emt 0:00:34]} Rg8 {[%emt 0:00:36]} 38. Qf2 {[%emt 0:00:45]} Rg7 {[%emt 0:00:45]} 39. Qc5 {[%emt 0:00:37]} Rd8 {[%emt 0:01:28]} 40. Qxa5 {[%emt 0:00:24]} Rdg8 {[%emt 0:00:28] unterminated} 41. R6f2 $11 {[%emt 0:09:37]} (41. g4 $18) 41... Qh4 {[%emt 0:03:13]} 42. Qa6 {[%emt 0:13:47]} Nxe4 {[%emt 0:08:21]} 43. Bxe4 {[%emt 0:00:14]} Qxe4 {[%emt 0:00:04]} 44. Qf6 {[%emt 0:00:25]} Qd5 {[%emt 0:01:23]} 45. c4 {[%emt 0:02:52]} Qxc4 {[%emt 0:01:23]} 46. Qxe5 {[%emt 0:00:12]} Qc6 {[%emt 0:00:16]} 47. Rg1 {[%emt 0:01:47]} Qe6 {[%emt 0:01:39]} 48. Qxe6 {[%emt 0:02:19]} fxe6 {[%emt 0:00:05]} 49. Re1 {[%emt 0:00:32]} Rg6 {[%emt 0:00:14]} 50. Rfe2 {[%emt 0:00:41]} Re8 {[%emt 0:00:28]} 51. Re5 {[%emt 0:00:27]} Kg7 {[%emt 0:00:17]} 52. g4 {[%emt 0:00:48]} h6 {[%emt 0:00:34]} 53. Kg2 {[%emt 0:00:26]} Kf6 {[%emt 0:00:25]} 54. Kg3 {[%emt 0:00:47]} Rg5 {[%emt 0:02:19]} 55. R5e4 {[%emt 0:01:42] normal} 1/2-1/2

[Event "-chT Youth Countries 2019"]
[Site "Wuerzburg"]
[Date "2019.10.06"]
[Round "7.6"]
[White "Metzdorf, Matteo"]
[Black "Peglau, Charis"]
[Result "1-0"]
[ECO "B10"]
[WhiteElo "1862"]
[BlackElo "1827"]
[Annotator "NA RC"]
[PlyCount "87"]
[EventDate "2019.10.02"]
[EventType "team-tourn"]
[EventRounds "7"]
[EventCountry "GER"]
[SourceTitle "playchess.com"]
[Source "ChessBase"]
[SourceQuality "1"]
[WhiteTeam "Rheinland-Pfalz"]
[BlackTeam "Sachsen"]
[TimeControl "40/5400+30:1800+30"]

1. e4 {[%emt 0:00:00]} c6 {[%emt 0:00:00]} 2. Nc3 {[%emt 0:00:00]} d5 {[%emt 0:00:00]} 3. Nf3 {[%emt 0:00:00]} Nf6 {[%emt 0:00:01]} 4. e5 {[%emt 0:11:11]} Ne4 {[%emt 0:00:08]} 5. Ne2 {[%emt 0:02:55]} Qb6 {[%emt 0:00:15]} 6. d4 {[%emt 0:00:28] B11: Caro-Kann: Two Knights Variation} e6 {[%emt 0:00:18] unterminated} 7. Ng3 {[%emt 0:05:49]} c5 {[%emt 0:00:55] unterminated} 8. Bd3 {[%emt 0:06:04] unterminated} Nxg3 $1 {[%emt 0:02:39] unterminated} 9. fxg3 {[%emt 0:14:56]} Nc6 {[%emt 0:00:55] unterminated} 10. O-O {[%emt 0:04:34]} cxd4 {[%emt 0:00:59] unterminated} 11. a3 $146 {[%emt 0:07:36] unterminated} ({Predecessor:} 11. Qe2 h6 12. a3 Bd7 13. g4 {½-½ (59) Vachier Lagrave,M (2778)-Nakamura,H (2743) Saint Louis 2019}) 11... Bd7 {[%emt 0:05:07] unterminated} 12. Qe2 {[%emt 0:07:59] unterminated} Be7 {[%emt 0:04:57] unterminated} 13. Ng5 {[%emt 0:05:55] unterminated} Bxg5 {[%emt 0:00:47]} 14. Bxg5 {[%emt 0:00:13]} h6 {[%emt 0:00:29] unterminated} 15. Qh5 {[%emt 0:14:24] unterminated} Rf8 $1 {[%emt 0:11:11] unterminated} ({Don't blunder} 15... Nxe5 $2 16. Bd2 $18) 16. Bd2 {[%emt 0:15:22]} O-O-O {[%emt 0:02:13]} 17. b4 {[%emt 0:00:08] unterminated} Kb8 {[%emt 0:03:47]} 18. b5 {[%emt 0:00:47] unterminated} Na5 {[%emt 0:00:54] unterminated} 19. Bb4 {[%emt 0:00:12]} ({Don't blunder} 19. Rxf7 $2 Be8 $19 {[%mdl 64] Skewer}) 19... Rh8 {[%emt 0:05:15]} 20. Bd6+ {[%emt 0:00:16]} Ka8 {[%emt 0:00:05]} 21. Qxf7 {[%emt 0:00:26]} g5 {[%emt 0:01:23]} 22. Be7 {[%emt 0:00:43]} Nc4 {[%emt 0:12:34]} 23. Bxd8 {[%emt 0:00:21]} Qxd8 {[%emt 0:01:29]} 24. Qf6 {[%emt 0:00:37]} Qc8 {[%emt 0:01:50]} 25. a4 {[%emt 0:00:55]} Ne3 {[%emt 0:00:08]} 26. Rf3 {[%emt 0:00:29]} Ng4 {[%emt 0:01:25]} 27. Qe7 {[%emt 0:00:36]} Nxe5 {[%emt 0:00:21]} 28. Rf2 {[%emt 0:00:15] unterminated} Re8 {[%emt 0:09:58] unterminated} 29. Qd6 {[%emt 0:00:35]} Ng4 {[%emt 0:07:45]} 30. Rf7 {[%emt 0:00:07]} Rd8 {[%emt 0:00:05]} 31. Qe7 {[%emt 0:00:54]} Ne3 {[%emt 0:01:12] unterminated} 32. Re1 {[%emt 0:00:22]} Qb8 {[%emt 0:04:39]} 33. c3 {[%emt 0:00:41]} e5 {[%emt 0:03:12]} 34. cxd4 {[%emt 0:00:10]} exd4 {[%emt 0:00:01]} 35. Qf6 {[%emt 0:00:31]} Ng4 {[%emt 0:07:53]} 36. Qxd4 {[%emt 0:00:12]} h5 {[%emt 0:00:03]} 37. Bf5 {[%emt 0:00:51]} Bxf5 {[%emt 0:00:46]} 38. Rxf5 {[%emt 0:00:05]} Re8 {[%emt 0:00:53]} 39. Rxe8 {[%emt 0:01:08]} Qxe8 {[%emt 0:00:01]} 40. h3 {[%emt 0:00:27]} Nh6 {[%emt 0:02:07] unterminated} 41. Rxd5 {[%emt 0:04:07]} Nf7 {[%emt 0:01:12] unterminated} 42. Rd7 {[%emt 0:02:17]} h4 {[%emt 0:03:08]} 43. Rxf7 {[%emt 0:07:04]} Qe1+ {[%emt 0:01:00]} 44. Rf1 {[%emt 0:00:08] normal} 1-0

[Event "-chT Youth Countries 2019"]
[Site "Wuerzburg"]
[Date "2019.10.06"]
[Round "7.6"]
[White "Rempe, Jonas"]
[Black "Brunner, Sophia"]
[Result "1/2-1/2"]
[ECO "C01"]
[WhiteElo "1816"]
[BlackElo "1935"]
[Annotator "NA"]
[PlyCount "118"]
[EventDate "2019.10.02"]
[EventType "team-tourn"]
[EventRounds "7"]
[EventCountry "GER"]
[SourceTitle "playchess.com"]
[Source "ChessBase"]
[SourceQuality "1"]
[WhiteTeam "Schleswig-Holstein"]
[BlackTeam "Niedersachsen"]
[TimeControl "40/5400+30:1800+30"]

1. e4 {[%emt 0:00:00]} e6 {[%emt 0:00:00]} 2. d4 {[%emt 0:00:00]} d5 {[%emt 0:00:00]} 3. exd5 {[%emt 0:00:00]} exd5 {[%emt 0:00:00]} 4. Nf3 {[%emt 0:00:00]} Bd6 {[%emt 0:00:04]} 5. c4 {[%emt 0:00:16]} Nf6 {[%emt 0:00:12]} 6. Bd3 {[%emt 0:00:35] C01: French: Exchange Variation} (6. c5 Be7 7. Bd3 O-O 8. O-O b6 9. Be3 a5 10. cxb6 cxb6 11. Nc3 Ba6 12. Ne5 h6 13. Rc1 Bxd3 14. Qxd3 a4 15. a3 Bd6 16. Qd1 Ne4 17. Nxd5 {1-0 (17) Xiong,J (2707)-Lysyj,I (2596) Khanty-Mansiysk 2019}) 6... dxc4 {[%emt 0:00:07]} 7. Bxc4 {[%emt 0:00:12]} O-O {[%emt 0:00:14]} 8. O-O {[%emt 0:00:29]} Nc6 {[%emt 0:00:11]} 9. Bg5 {[%emt 0:02:12]} h6 {[%emt 0:00:15]} 10. Bh4 {[%emt 0:00:16]} Bg4 {[%emt 0:00:11]} 11. Be2 $146 {[%emt 0:02:42] unterminated} ({Predecessor:} 11. d5 Ne5 12. Be2 g5 13. Bg3 Nxf3+ 14. Bxf3 Bxf3 15. Qxf3 Bxg3 16. fxg3 Nxd5 {0-1 (32) Mrz,I (923)-Rodriguez,R (1199) LSS email 2010}) 11... g5 {[%emt 0:10:47] unterminated} 12. Bg3 {[%emt 0:00:32]} Bxg3 {[%emt 0:00:20] unterminated} 13. fxg3 {[%emt 0:04:45]} Bxf3 {[%emt 0:01:15]} 14. Bxf3 {[%emt 0:00:27]} Qxd4+ {[%emt 0:16:45]} 15. Qxd4 {[%emt 0:00:30]} Nxd4 {[%emt 0:00:05]} 16. Nc3 {[%emt 0:00:22]} Nxf3+ {[%emt 0:01:10]} 17. gxf3 {[%emt 0:03:01]} c6 {[%emt 0:04:40]} 18. Rfe1 {[%emt 0:00:45]} Rfe8 {[%emt 0:00:29]} 19. Rad1 {[%emt 0:00:35]} Rxe1+ {[%emt 0:00:17]} 20. Rxe1 {[%emt 0:00:08]} Kf8 {[%emt 0:03:42]} 21. Rd1 {[%emt 0:00:13] unterminated} Ke7 {[%emt 0:00:51]} 22. Kf2 {[%emt 0:01:58]} Rd8 {[%emt 0:00:26] unterminated} 23. Re1+ {[%emt 0:02:02] unterminated} Kd7 {[%emt 0:01:00]} 24. Re2 {[%emt 0:01:55] unterminated} Re8 {[%emt 0:04:35]} 25. Rd2+ {[%emt 0:00:33]} Kc7 {[%emt 0:00:07] unterminated} 26. Kf1 {[%emt 0:02:43] unterminated} Nd7 {[%emt 0:07:04] unterminated} 27. Kf2 {[%emt 0:04:24]} Nb6 {[%emt 0:01:23]} 28. b3 {[%emt 0:00:14] unterminated} Rd8 {[%emt 0:08:17]} 29. Rc2 {[%emt 0:00:10] unterminated} Nd5 {[%emt 0:06:11] unterminated} 30. Nxd5+ {[%emt 0:01:29]} Rxd5 {[%emt 0:00:06]} 31. Ke3 {[%emt 0:00:09]} Kd6 {[%emt 0:04:28]} 32. Ke2 {[%emt 0:05:49]} Ke5 {[%emt 0:01:06]} 33. Ke3 {[%emt 0:00:08]} f5 {[%emt 0:02:17]} 34. Rc3 {[%emt 0:08:51]} f4+ {[%emt 0:05:02]} 35. gxf4+ {[%emt 0:00:21]} gxf4+ {[%emt 0:00:06]} 36. Ke2 {[%emt 0:00:08] unterminated} Kf5 {[%emt 0:03:58]} 37. Rc4 {[%emt 0:00:50] unterminated} Kg5 {unterminated} 38. Rd4 $2 {[%emt 0:04:06]} (38. h4+ $17 Kf5 39. b4) 38... Kf5 $2 {[%emt 0:06:05]} (38... Rxd4 {mates} 39. Ke1 Rd3 40. Ke2 Rc3 41. h3 Kh4 42. a4 Rxb3 43. Kd2 Rxf3 44. a5 Ra3 45. Kc2 f3 46. Kb2 Rxa5 47. Kc2 f2 48. Kd3 f1=Q+ {[%mdl 64] Double Attack} 49. Kd2 Qxh3 50. Kc1 Ra2 51. Kb1 Qb3+ 52. Kc1 Qc2#) 39. Rc4 $1 {[%emt 0:00:09]} Ra5 {[%emt 0:02:58]} 40. a4 {[%emt 0:00:19]} Re5+ {[%emt 0:00:42]} 41. Kf2 {[%emt 0:30:35] unterminated} Re3 {[%emt 0:35:36] unterminated} ({Black should play} 41... a5 42. Rc3 Kg5) 42. b4 {[%emt 0:06:37]} Ra3 {[%emt 0:00:00]} 43. a5 {[%emt 0:00:00]} Ra2+ {[%emt 0:00:00]} 44. Kg1 {[%emt 0:00:00]} Re2 {[%emt 0:00:00]} 45. a6 {[%emt 0:00:00]} Re7 {[%emt 0:00:00]} 46. Rc5+ {[%emt 0:00:00]} Kg6 {[%emt 0:00:00]} 47. axb7 {[%emt 0:00:00]} Rxb7 {[%emt 0:00:00]} 48. Rxc6+ {[%emt 0:00:00]} Kg5 {unterminated} 49. Rc5+ {[%emt 0:00:00] unterminated} Kf6 {[%emt 0:00:00]} 50. Rc6+ {[%emt 0:00:00] unterminated} Ke5 $11 {[%emt 0:00:00]} 51. Rxh6 {[%emt 0:00:00]} Rxb4 {[%emt 0:00:00]} 52. Ra6 {[%emt 0:00:00]} Rb7 {[%emt 0:00:00]} 53. Ra4 {[%emt 0:00:00]} Rg7+ {[%emt 0:00:00]} 54. Kf2 {[%emt 0:00:00]} Kf5 {[%emt 0:00:00]} 55. Ra5+ {[%emt 0:00:00]} Kf6 {[%emt 0:00:00]} 56. Ra6+ {[%emt 0:00:00]} Kg5 57. Ra5+ Kf6 {[%emt 0:01:15]} 58. Ra6+ {[%emt 0:00:00]} Ke5 {[%emt 0:00:24]} 59. Ra5+ {[%emt 0:00:00]} Kf6 {normal} 1/2-1/2